[Event "6th GRENKE Chess Classic 2019"]
[Site "Karlsruhe/Baden-Baden"]
[Date "2019.04.22"]
[Round "3.2"]
[White "Svidler, Peter"]
[Black "Meier, Georg"]
[Result "1-0"]
[ECO "C11"]
[WhiteElo "2735"]
[BlackElo "2628"]
[Annotator "RC"]
[PlyCount "73"]
[EventDate "2019.03.30"]
[EventType "tourn"]
[EventCountry "GER"]
[SourceTitle "playchess.com"]
[Source "ChessBase"]
[SourceQuality "1"]
[TimeControl "40/6000+30:20/3000+30:900+30"]

1. e4 {[%emt 0:00:00]} e6 {[%emt 0:00:00]} 2. d4 {[%emt 0:00:00]} d5 {[%emt 0:00:00]} 3. Nc3 {[%emt 0:00:00]} Nf6 {[%emt 0:00:00]} 4. e5 {[%emt 0:01:05]} Nfd7 {[%emt 0:00:00]} 5. f4 {[%emt 0:00:08]} c5 {[%emt 0:00:00]} 6. Nf3 {[%emt 0:00:06]} Nc6 {[%emt 0:00:03]} 7. Be3 {[%emt 0:00:15]} cxd4 {[%emt 0:00:14]} 8. Nxd4 {[%emt 0:00:03]} Qb6 {[%emt 0:00:21]} 9. Qd2 {[%emt 0:01:21]} Qxb2 {[%emt 0:00:10]} 10. Rb1 {[%emt 0:00:09]} Qa3 {[%emt 0:00:05]} 11. Bb5 {[%emt 0:00:42]} Nxd4 {[%emt 0:00:13]} 12. Bxd4 {[%emt 0:00:05]} Bb4 {[%emt 0:00:11]} 13. Rb3 {[%emt 0:15:09]} Qa5 {[%emt 0:00:54]} 14. a3 {[%emt 0:02:42]} Be7 {[%emt 0:02:04]} 15. f5 {[%emt 0:05:34]} exf5 {[%emt 0:00:41]} 16. Nxd5 {[%emt 0:01:33]} Qxd2+ {[%emt 0:00:13]} 17. Kxd2 {[%emt 0:00:06]} Bd8 {[%emt 0:00:08]} 18. Rc3 {[%emt 0:22:46]} Ba5 {[%emt 0:46:29]} 19. Nc7+ {[%emt 0:06:35]} Bxc7 {[%emt 0:00:16]} 20. Rxc7 {[%emt 0:00:04]} Kd8 {[%emt 0:01:32]} 21. Rc3 {[%emt 0:01:30]} Nf8 {[%emt 0:09:21]} 22. Bc5 {[%emt 0:06:20]} Bd7 {[%emt 0:02:08]} 23. Bxf8 {[%emt 0:00:49]} Bxb5 {[%emt 0:00:13]} 24. Bxg7 {[%emt 0:00:03]} Rg8 {[%emt 0:00:33]} 25. Bf6+ {[%emt 0:00:48]} Kd7 {[%emt 0:01:14]} 26. Rd1 {[%emt 0:04:15]} f4 {[%emt 0:08:49]} 27. g3 {[%emt 0:04:25]} fxg3 {[%emt 0:08:30]} 28. Kc1+ {[%emt 0:01:44]} Ke8 {[%emt 0:00:13]} 29. hxg3 {[%emt 0:00:32]} Bc6 {[%emt 0:09:56]} 30. Rd4 {[%emt 0:04:23]} Rg6 {[%emt 0:08:54]} 31. Rcd3 {[%emt 0:02:58]} Kf8 {[%emt 0:00:07]} 32. Rh4 {[%emt 0:00:18]} h6 {[%emt 0:00:07]} 33. g4 {[%emt 0:00:48]} Bb5 {[%emt 0:03:32]} 34. Rd2 {[%emt 0:01:36]} Re8 {[%emt 0:04:43]} 35. g5 {[%emt 0:00:51]} Rxg5 {[%emt 0:00:06]} 36. Rxh6 {[%emt 0:00:11]} Rg8 {[%emt 0:00:37]} 37. Rdh2 {[%emt 0:00:14]} 1-0

[Event "6th GRENKE Chess Classic 2019"]
[Site "Karlsruhe/Baden-Baden"]
[Date "2019.04.22"]
[Round "3.4"]
[White "Vachier-Lagrave, Maxime"]
[Black "Naiditsch, Arkadij"]
[Result "1/2-1/2"]
[ECO "C67"]
[WhiteElo "2773"]
[BlackElo "2695"]
[Annotator "RC"]
[PlyCount "84"]
[EventDate "2019.03.30"]
[EventType "tourn"]
[EventCountry "GER"]
[SourceTitle "playchess.com"]
[Source "ChessBase"]
[SourceQuality "1"]
[TimeControl "40/6000+30:20/3000+30:900+30"]

1. e4 {[%emt 0:00:00]} e5 {[%emt 0:00:00]} 2. Nf3 {[%emt 0:00:00]} Nc6 {[%emt 0:00:00]} 3. Bb5 {[%emt 0:00:00]} Nf6 {[%emt 0:00:02]} 4. O-O {[%emt 0:00:00]} Nxe4 {[%emt 0:00:15]} 5. d4 {[%emt 0:00:00]} Nd6 {[%emt 0:00:12]} 6. Bxc6 {[%emt 0:00:00]} dxc6 {[%emt 0:00:09]} 7. dxe5 {[%emt 0:00:00]} Nf5 {[%emt 0:00:12]} 8. Qxd8+ {[%emt 0:00:00]} Kxd8 {[%emt 0:00:09]} 9. h3 {[%emt 0:00:02]} Ne7 {[%emt 0:03:41]} 10. Rd1+ {[%emt 0:00:47]} Ke8 {[%emt 0:00:12]} 11. Nc3 {[%emt 0:00:09]} Ng6 {[%emt 0:04:58]} 12. b3 {[%emt 0:00:26]} Be7 {[%emt 0:03:12]} 13. Ne4 {[%emt 0:02:33]} a5 {[%emt 0:11:33]} 14. Re1 {[%emt 0:04:46]} a4 {[%emt 0:08:29]} 15. Bb2 {[%emt 0:01:11]} Be6 {[%emt 0:17:44]} 16. Nd4 {[%emt 0:03:27]} Nf4 {[%emt 0:03:43]} 17. Rad1 {[%emt 0:07:58]} h5 {[%emt 0:23:27]} 18. h4 {[%emt 0:11:52]} Nd5 {[%emt 0:08:11]} 19. c4 {[%emt 0:08:04]} Nb4 {[%emt 0:00:36]} 20. a3 Na6 {[%emt 0:00:06]} 21. b4 {[%emt 0:04:53]} c5 {[%emt 0:05:42]} 22. Nxe6 {[%emt 0:02:38]} fxe6 {[%emt 0:00:07]} 23. b5 {[%emt 0:00:05]} Nb8 {[%emt 0:00:05]} 24. f4 {[%emt 0:12:33]} Rf8 {[%emt 0:02:39]} 25. Nf6+ {[%emt 0:06:10]} gxf6 {[%emt 0:05:10]} 26. exf6 {[%emt 0:00:15]} Bd6 {[%emt 0:00:29]} 27. Rxe6+ {[%emt 0:09:18]} Kf7 {[%emt 0:00:25]} 28. Rde1 {[%emt 0:05:19]} Rd8 {[%emt 0:02:18]} 29. g4 {[%emt 0:00:13]} hxg4 {[%emt 0:03:03]} 30. h5 {[%emt 0:00:29]} Nd7 {[%emt 0:00:39]} 31. Re7+ {[%emt 0:17:42]} Bxe7 {[%emt 0:00:07]} 32. Rxe7+ {[%emt 0:00:04]} Kg8 {[%emt 0:00:08]} 33. Rg7+ {[%emt 0:01:48]} Kh8 {[%emt 0:00:12]} 34. f7 {[%emt 0:00:49]} Rf8 {[%emt 0:01:22]} 35. f5 {[%emt 0:02:40]} Nb6 {[%emt 0:01:02]} 36. Bf6 {[%emt 0:02:06]} Nxc4 {[%emt 0:01:34]} 37. Rxg4+ {[%emt 0:00:50]} Kh7 {[%emt 0:00:05]} 38. Rg7+ {[%emt 0:00:04]} Kh6 {[%emt 0:00:45]} 39. Rg6+ {[%emt 0:00:03]} Kh7 {[%emt 0:01:13]} 40. Rg7+ {[%emt 0:00:00]} Kh6 {[%emt 0:00:00]} 41. Rg6+ {[%emt 0:00:06]} Kh7 {[%emt 0:05:32]} 42. Rg7+ {[%emt 0:00:32]} Kh6 {[%emt 0:00:07]} 1/2-1/2